{"text_format":"3","workbook":"xlsx","n_sheets":4,"sheets":["開始","プロジェクト パラメーター","プロジェクト詳細","プロジェクト合計"],"not_rendered":{"charts":2,"defined_names":3,"pivot_tables":1},"read":"whole","date_system":"1900"}

{"sheet":"開始","index":0,"n_rows":7,"n_cols":2,"rows_kept":7}
[null,"このテンプレートについて"]
[null,"このイベント計画追跡ツールブックで、プロジェクト パラメーター、プロジェクト詳細、およびプロジェクト合計を追跡します。"]
[null,"縦棒グラフを更新するには、プロジェクト パラメーター ワークシートとプロジェクト詳細ワークシートに情報を入力します。プロジェクト合計ワークシート内のピボットテーブルは自動的に更新されます。"]
[null,"パラメーターのワークシートに会社名を入力すると、他のワークシートでも自動的に更新されます。"]
[null,"注:   "]
[null,"イベント追跡ツールブックの各ワークシートの列 A に詳細な手順が記載されています。このテキストは意図的に表示されません。テキストを削除するには、列 A を選択し、[削除] を選択します。テキストを再表示するには、列 A を選択し、フォントの色を変更します。"]
[null,"ワークシートの表の詳細については、表内で Shift キーを押し、F10 キーを押して、[テーブル] オプションを選択し、[代替テキスト] を選択します。"]

{"sheet":"プロジェクト パラメーター","index":1,"n_rows":24,"n_cols":9,"rows_kept":24,"merged":[[23,1,42,3]]}
["このワークシートでは、プロジェクト パラメーターを作成します。右のセルに会社名を入力します。役立つ手順がこの列のセルに表示されます。下向き矢印で開始します。","会社名"]
["このワークシートのタイトルは右のセルに表示されます。","イベント管理プロジェクト追跡ツール"]
["社外秘に関するメッセージが、右のセルに表示されます。",{"$f":"B1&\" (極秘)\"","v":"会社名 (極秘)"}]
["ヒントは、右のセルに表示されます。","網掛けされているセルは自動的に計算されます。これらのセルに入力する必要はありません。"]
["右のセルから始まり、パラメーター テーブルに詳細を入力します。次の指示はセル A12 に表示されます。","プロジェクトの種類","アカウント マネージャー","プロジェクト マネージャー","戦略マネージャー","デザイン スペシャリスト","イベント スタッフ","管理スタッフ","集計"]
[null,"イベント戦略の作成",{"v":0.2,"d":"¥0"},{"v":0.1,"d":"¥0"},{"v":0.6,"d":"¥1"},{"v":0,"d":"¥0"},{"v":0,"d":"¥0"},{"v":0.1,"d":"¥0"},{"$f":"SUM(パラメーター[[#This Row],[アカウント マネージャー]:[管理スタッフ]])","v":{"v":1,"d":"¥1"}}]
[null,"イベントの計画",{"v":0.2,"d":"¥0"},{"v":0.5,"d":"¥1"},{"v":0.1,"d":"¥0"},{"v":0.1,"d":"¥0"},{"v":0,"d":"¥0"},{"v":0.1,"d":"¥0"},{"$f":"SUM(パラメーター[[#This Row],[アカウント マネージャー]:[管理スタッフ]])","v":{"v":0.9999999999999999,"d":"¥1"}}]
[null,"イベントのデザイン",{"v":0.2,"d":"¥0"},{"v":0.2,"d":"¥0"},{"v":0,"d":"¥0"},{"v":0.5,"d":"¥1"},{"v":0,"d":"¥0"},{"v":0.1,"d":"¥0"},{"$f":"SUM(パラメーター[[#This Row],[アカウント マネージャー]:[管理スタッフ]])","v":{"v":1,"d":"¥1"}}]
[null,"イベントの手配",{"v":0.2,"d":"¥0"},{"v":0.6,"d":"¥1"},{"v":0,"d":"¥0"},{"v":0,"d":"¥0"},{"v":0.1,"d":"¥0"},{"v":0.1,"d":"¥0"},{"$f":"SUM(パラメーター[[#This Row],[アカウント マネージャー]:[管理スタッフ]])","v":{"v":1,"d":"¥1"}}]
[null,"スタッフのスタッフ配置",{"v":0.2,"d":"¥0"},{"v":0.1,"d":"¥0"},{"v":0,"d":"¥0"},{"v":0,"d":"¥0"},{"v":0.6,"d":"¥1"},{"v":0.1,"d":"¥0"},{"$f":"SUM(パラメーター[[#This Row],[アカウント マネージャー]:[管理スタッフ]])","v":{"v":1,"d":"¥1"}}]
[null,"イベントの評価",{"v":0.2,"d":"¥0"},{"v":0.2,"d":"¥0"},{"v":0.2,"d":"¥0"},{"v":0.2,"d":"¥0"},{"v":0,"d":"¥0"},{"v":0.2,"d":"¥0"},{"$f":"SUM(パラメーター[[#This Row],[アカウント マネージャー]:[管理スタッフ]])","v":{"v":1,"d":"¥1"}}]
["右のセル (C12 から H12) に、混合レートを入力します。次の指示はセル A14 に表示されます。","混合レート",{"v":180,"d":"¥180"},{"v":120,"d":"¥120"},{"v":150,"d":"¥150"},{"v":100,"d":"¥100"},{"v":80,"d":"¥80"},{"v":60,"d":"¥60"}]
[]
["費用の予算と実績を示す縦棒グラフは右のセルに表示され、時間の見積もりと実績を示す縦棒グラフはセル F14 に表示されます。",{"$nulls":4},"時間の計画と実績を示す縦棒グラフはこのセルに表示されます。"]
[null,null,"アカウント マネージャー","プロジェクト マネージャー","戦略マネージャー","デザイン スペシャリスト","イベント スタッフ","管理スタッフ"]
[null,"計画的費用",{"$f":"SUBTOTAL(109,プロジェクト詳細[アカウント マネージャー])","v":{"v":54000,"d":"¥54,000.00"}},{"$f":"SUBTOTAL(109,プロジェクト詳細[プロジェクト マネージャー])","v":{"v":52200,"d":"¥52,200.00"}},{"$f":"SUBTOTAL(109,プロジェクト詳細[戦略マネージャー])","v":{"v":24000,"d":"¥24,000.00"}},{"$f":"SUBTOTAL(109,プロジェクト詳細[デザイン スペシャリスト])","v":{"v":29000,"d":"¥29,000.00"}},{"$f":"SUBTOTAL(109,プロジェクト詳細[イベント スタッフ])","v":{"v":13200,"d":"¥13,200.00"}},{"$f":"SUBTOTAL(109,プロジェクト詳細[管理スタッフ])","v":{"v":9000,"d":"¥9,000.00"}}]
[null,"実績費用",{"$f":"SUBTOTAL(109,プロジェクト詳細[[アカウント マネージャー ]])","v":{"v":54360,"d":"¥54,360.00"}},{"$f":"SUBTOTAL(109,プロジェクト詳細[[プロジェクト マネージャー ]])","v":{"v":51540,"d":"¥51,540.00"}},{"$f":"SUBTOTAL(109,プロジェクト詳細[[戦略マネージャー ]])","v":{"v":25650,"d":"¥25,650.00"}},{"$f":"SUBTOTAL(109,プロジェクト詳細[[デザイン スペシャリスト ]])","v":{"v":28900,"d":"¥28,900.00"}},{"$f":"SUBTOTAL(109,プロジェクト詳細[[イベント スタッフ ]])","v":{"v":13400,"d":"¥13,400.00"}},{"$f":"SUBTOTAL(109,プロジェクト詳細[[管理スタッフ ]])","v":{"v":9060,"d":"¥9,060.00"}}]
[null,"計画時間",{"$f":"C16/$C$12","v":{"v":300,"d":"300.00"}},{"$f":"D16/$C$12","v":{"v":290,"d":"290.00"}},{"v":133.33333333333334,"d":"133.33"},{"v":161.11111111111111,"d":"161.11"},{"v":73.33333333333333,"d":"73.33"},{"v":50,"d":"50.00"}]
[null,"実績時間",{"$f":"C17/$C$12","v":{"v":302,"d":"302.00"}},{"$f":"D17/$C$12","v":{"v":286.3333333333333,"d":"286.33"}},{"$f":"E17/$C$12","v":{"v":142.5,"d":"142.50"}},{"$f":"F17/$C$12","v":{"v":160.55555555555554,"d":"160.56"}},{"$f":"G17/$C$12","v":{"v":74.44444444444444,"d":"74.44"}},{"$f":"H17/$C$12","v":{"v":50.333333333333336,"d":"50.33"}}]
[]
[]
[]
[]
[null,"費用の計画と実績を示す縦棒グラフはこのセルに表示されます。"]

{"sheet":"プロジェクト詳細","index":2,"n_rows":10,"n_cols":23,"rows_kept":10}
["このワークシートでは、プロジェクト詳細を作成します。会社名は右のセルで自動的に更新されます。役立つ手順がこの列のセルに表示されます。下向き矢印で開始します。",{"$f":"'プロジェクト パラメーター'!B1","v":"会社名"}]
["このワークシートのタイトルは右のセルに表示されます。","イベント管理プロジェクト追跡ツール"]
["社外秘に関するメッセージが、右のセルに表示されます。",{"$f":"'プロジェクト パラメーター'!B3","v":"会社名 (極秘)"}]
["右側のセルから始めて、プロジェクト詳細テーブルに情報を入力します。\n情報\n右の表に行を追加するには、(合計行ではなく) 表の本文の一番右下のセルを選択して Tab キーを押すか、行を挿入したい場所で Shift キーと F10 キーを押して、[挿入]、[テーブルの行 (上)] または [テーブルの行 (下)] の順に選択します。\nプロジェクト合計ピボットテーブルはすべてのセルを使用するため、未使用の行がすべて削除されていることを確認します (削除されていないと結果がエラーになります)。","プロジェクト名","プロジェクトの種類","開始計画","終了計画","開始実績","終了実績","作業時間計画","作業時間実績","継続期間計画","継続期間実績","アカウント マネージャー","プロジェクト マネージャー","戦略マネージャー","デザイン スペシャリスト","イベント スタッフ","管理スタッフ","アカウント マネージャー ","プロジェクト マネージャー ","戦略マネージャー ","デザイン スペシャリスト ","イベント スタッフ ","管理スタッフ "]
[null,"プロジェクト 1","イベント戦略の作成",{"$f":"DATE(YEAR(TODAY()),6,9)","v":"2019-06-09"},{"$f":"DATE(YEAR(TODAY()),8,7)","v":"2019-08-07"},{"$f":"DATE(YEAR(TODAY()),6,29)","v":"2019-06-29"},{"$f":"DATE(YEAR(TODAY()),9,3)","v":"2019-09-03"},200,220,{"$f":"DAYS360(プロジェクト詳細[[#This Row],[開始計画]],プロジェクト詳細[[#This Row],[終了計画]],FALSE)","v":58},{"$f":"DAYS360(プロジェクト詳細[[#This Row],[開始実績]],プロジェクト詳細[[#This Row],[終了実績]],FALSE)","v":64},{"$f":"INDEX(パラメーター[],MATCH(プロジェクト詳細[[#This Row],[プロジェクトの種類]],パラメーター[プロジェクトの種類],0),MATCH(プロジェクト詳細[[#Headers],[アカウント マネージャー]],パラメーター[#Headers],0))*INDEX('プロジェクト パラメーター'!$B$12:$H$12,1,MATCH(プロジェクト詳細[[#Headers],[アカウント マネージャー]],パラメーター[#Headers],0))*プロジェクト詳細[[#This Row],[作業時間計画]]","v":{"v":7200,"d":"¥7,200"}},{"$f":"INDEX(パラメーター[],MATCH(プロジェクト詳細[[#This Row],[プロジェクトの種類]],パラメーター[プロジェクトの種類],0),MATCH(プロジェクト詳細[[#Headers],[プロジェクト マネージャー]],パラメーター[#Headers],0))*INDEX('プロジェクト パラメーター'!$B$12:$H$12,1,MATCH(プロジェクト詳細[[#Headers],[プロジェクト マネージャー]],パラメーター[#Headers],0))*プロジェクト詳細[[#This Row],[作業時間計画]]","v":{"v":2400,"d":"¥2,400"}},{"$f":"INDEX(パラメーター[],MATCH(プロジェクト詳細[[#This Row],[プロジェクトの種類]],パラメーター[プロジェクトの種類],0),MATCH(プロジェクト詳細[[#Headers],[戦略マネージャー]],パラメーター[#Headers],0))*INDEX('プロジェクト パラメーター'!$B$12:$H$12,1,MATCH(プロジェクト詳細[[#Headers],[戦略マネージャー]],パラメーター[#Headers],0))*プロジェクト詳細[[#This Row],[作業時間計画]]","v":{"v":18000,"d":"¥18,000"}},{"$f":"INDEX(パラメーター[],MATCH(プロジェクト詳細[[#This Row],[プロジェクトの種類]],パラメーター[プロジェクトの種類],0),MATCH(プロジェクト詳細[[#Headers],[デザイン スペシャリスト]],パラメーター[#Headers],0))*INDEX('プロジェクト パラメーター'!$B$12:$H$12,1,MATCH(プロジェクト詳細[[#Headers],[デザイン スペシャリスト]],パラメーター[#Headers],0))*プロジェクト詳細[[#This Row],[作業時間計画]]","v":{"v":0,"d":"¥0"}},{"$f":"INDEX(パラメーター[],MATCH(プロジェクト詳細[[#This Row],[プロジェクトの種類]],パラメーター[プロジェクトの種類],0),MATCH(プロジェクト詳細[[#Headers],[イベント スタッフ]],パラメーター[#Headers],0))*INDEX('プロジェクト パラメーター'!$B$12:$H$12,1,MATCH(プロジェクト詳細[[#Headers],[イベント スタッフ]],パラメーター[#Headers],0))*プロジェクト詳細[[#This Row],[作業時間計画]]","v":{"v":0,"d":"¥0"}},{"$f":"INDEX(パラメーター[],MATCH(プロジェクト詳細[[#This Row],[プロジェクトの種類]],パラメーター[プロジェクトの種類],0),MATCH(プロジェクト詳細[[#Headers],[管理スタッフ]],パラメーター[#Headers],0))*INDEX('プロジェクト パラメーター'!$B$12:$H$12,1,MATCH(プロジェクト詳細[[#Headers],[管理スタッフ]],パラメーター[#Headers],0))*プロジェクト詳細[[#This Row],[作業時間計画]]","v":{"v":1200,"d":"¥1,200"}},{"$f":"INDEX(パラメーター[],MATCH(プロジェクト詳細[[#This Row],[プロジェクトの種類]],パラメーター[プロジェクトの種類],0),MATCH(プロジェクト詳細[[#Headers],[アカウント マネージャー]],パラメーター[#Headers],0))*INDEX('プロジェクト パラメーター'!$B$12:$H$12,1,MATCH(プロジェクト詳細[[#Headers],[アカウント マネージャー]],パラメーター[#Headers],0))*プロジェクト詳細[[#This Row],[作業時間実績]]","v":{"v":7920,"d":"¥7,920"}},{"$f":"INDEX(パラメーター[],MATCH(プロジェクト詳細[[#This Row],[プロジェクトの種類]],パラメーター[プロジェクトの種類],0),MATCH(プロジェクト詳細[[#Headers],[プロジェクト マネージャー]],パラメーター[#Headers],0))*INDEX('プロジェクト パラメーター'!$B$12:$H$12,1,MATCH(プロジェクト詳細[[#Headers],[プロジェクト マネージャー]],パラメーター[#Headers],0))*プロジェクト詳細[[#This Row],[作業時間実績]]","v":{"v":2640,"d":"¥2,640"}},{"$f":"INDEX(パラメーター[],MATCH(プロジェクト詳細[[#This Row],[プロジェクトの種類]],パラメーター[プロジェクトの種類],0),MATCH(プロジェクト詳細[[#Headers],[戦略マネージャー]],パラメーター[#Headers],0))*INDEX('プロジェクト パラメーター'!$B$12:$H$12,1,MATCH(プロジェクト詳細[[#Headers],[戦略マネージャー]],パラメーター[#Headers],0))*プロジェクト詳細[[#This Row],[作業時間実績]]","v":{"v":19800,"d":"¥19,800"}},{"$f":"INDEX(パラメーター[],MATCH(プロジェクト詳細[[#This Row],[プロジェクトの種類]],パラメーター[プロジェクトの種類],0),MATCH(プロジェクト詳細[[#Headers],[デザイン スペシャリスト]],パラメーター[#Headers],0))*INDEX('プロジェクト パラメーター'!$B$12:$H$12,1,MATCH(プロジェクト詳細[[#Headers],[デザイン スペシャリスト]],パラメーター[#Headers],0))*プロジェクト詳細[[#This Row],[作業時間実績]]","v":{"v":0,"d":"¥0"}},{"$f":"INDEX(パラメーター[],MATCH(プロジェクト詳細[[#This Row],[プロジェクトの種類]],パラメーター[プロジェクトの種類],0),MATCH(プロジェクト詳細[[#Headers],[イベント スタッフ]],パラメーター[#Headers],0))*INDEX('プロジェクト パラメーター'!$B$12:$H$12,1,MATCH(プロジェクト詳細[[#Headers],[イベント スタッフ]],パラメーター[#Headers],0))*プロジェクト詳細[[#This Row],[作業時間実績]]","v":{"v":0,"d":"¥0"}},{"$f":"INDEX(パラメーター[],MATCH(プロジェクト詳細[[#This Row],[プロジェクトの種類]],パラメーター[プロジェクトの種類],0),MATCH(プロジェクト詳細[[#Headers],[管理スタッフ]],パラメーター[#Headers],0))*INDEX('プロジェクト パラメーター'!$B$12:$H$12,1,MATCH(プロジェクト詳細[[#Headers],[管理スタッフ]],パラメーター[#Headers],0))*プロジェクト詳細[[#This Row],[作業時間実績]]","v":{"v":1320,"d":"¥1,320"}}]
[null,"プロジェクト 2","イベントの計画",{"$f":"DATE(YEAR(TODAY())+1,6,25)","v":"2020-06-25"},{"$f":"DATE(YEAR(TODAY())+1,7,27)","v":"2020-07-27"},{"$f":"DATE(YEAR(TODAY()),7,15)","v":"2019-07-15"},{"$f":"DATE(YEAR(TODAY())+1,8,25)","v":"2020-08-25"},400,390,{"$f":"DAYS360(プロジェクト詳細[[#This Row],[開始計画]],プロジェクト詳細[[#This Row],[終了計画]],FALSE)","v":32},{"$f":"DAYS360(プロジェクト詳細[[#This Row],[開始実績]],プロジェクト詳細[[#This Row],[終了実績]],FALSE)","v":400},{"$f":"INDEX(パラメーター[],MATCH(プロジェクト詳細[[#This Row],[プロジェクトの種類]],パラメーター[プロジェクトの種類],0),MATCH(プロジェクト詳細[[#Headers],[アカウント マネージャー]],パラメーター[#Headers],0))*INDEX('プロジェクト パラメーター'!$B$12:$H$12,1,MATCH(プロジェクト詳細[[#Headers],[アカウント マネージャー]],パラメーター[#Headers],0))*プロジェクト詳細[[#This Row],[作業時間計画]]","v":{"v":14400,"d":"¥14,400"}},{"$f":"INDEX(パラメーター[],MATCH(プロジェクト詳細[[#This Row],[プロジェクトの種類]],パラメーター[プロジェクトの種類],0),MATCH(プロジェクト詳細[[#Headers],[プロジェクト マネージャー]],パラメーター[#Headers],0))*INDEX('プロジェクト パラメーター'!$B$12:$H$12,1,MATCH(プロジェクト詳細[[#Headers],[プロジェクト マネージャー]],パラメーター[#Headers],0))*プロジェクト詳細[[#This Row],[作業時間計画]]","v":{"v":24000,"d":"¥24,000"}},{"$f":"INDEX(パラメーター[],MATCH(プロジェクト詳細[[#This Row],[プロジェクトの種類]],パラメーター[プロジェクトの種類],0),MATCH(プロジェクト詳細[[#Headers],[戦略マネージャー]],パラメーター[#Headers],0))*INDEX('プロジェクト パラメーター'!$B$12:$H$12,1,MATCH(プロジェクト詳細[[#Headers],[戦略マネージャー]],パラメーター[#Headers],0))*プロジェクト詳細[[#This Row],[作業時間計画]]","v":{"v":6000,"d":"¥6,000"}},{"$f":"INDEX(パラメーター[],MATCH(プロジェクト詳細[[#This Row],[プロジェクトの種類]],パラメーター[プロジェクトの種類],0),MATCH(プロジェクト詳細[[#Headers],[デザイン スペシャリスト]],パラメーター[#Headers],0))*INDEX('プロジェクト パラメーター'!$B$12:$H$12,1,MATCH(プロジェクト詳細[[#Headers],[デザイン スペシャリスト]],パラメーター[#Headers],0))*プロジェクト詳細[[#This Row],[作業時間計画]]","v":{"v":4000,"d":"¥4,000"}},{"$f":"INDEX(パラメーター[],MATCH(プロジェクト詳細[[#This Row],[プロジェクトの種類]],パラメーター[プロジェクトの種類],0),MATCH(プロジェクト詳細[[#Headers],[イベント スタッフ]],パラメーター[#Headers],0))*INDEX('プロジェクト パラメーター'!$B$12:$H$12,1,MATCH(プロジェクト詳細[[#Headers],[イベント スタッフ]],パラメーター[#Headers],0))*プロジェクト詳細[[#This Row],[作業時間計画]]","v":{"v":0,"d":"¥0"}},{"$f":"INDEX(パラメーター[],MATCH(プロジェクト詳細[[#This Row],[プロジェクトの種類]],パラメーター[プロジェクトの種類],0),MATCH(プロジェクト詳細[[#Headers],[管理スタッフ]],パラメーター[#Headers],0))*INDEX('プロジェクト パラメーター'!$B$12:$H$12,1,MATCH(プロジェクト詳細[[#Headers],[管理スタッフ]],パラメーター[#Headers],0))*プロジェクト詳細[[#This Row],[作業時間計画]]","v":{"v":2400,"d":"¥2,400"}},{"$f":"INDEX(パラメーター[],MATCH(プロジェクト詳細[[#This Row],[プロジェクトの種類]],パラメーター[プロジェクトの種類],0),MATCH(プロジェクト詳細[[#Headers],[アカウント マネージャー]],パラメーター[#Headers],0))*INDEX('プロジェクト パラメーター'!$B$12:$H$12,1,MATCH(プロジェクト詳細[[#Headers],[アカウント マネージャー]],パラメーター[#Headers],0))*プロジェクト詳細[[#This Row],[作業時間実績]]","v":{"v":14040,"d":"¥14,040"}},{"$f":"INDEX(パラメーター[],MATCH(プロジェクト詳細[[#This Row],[プロジェクトの種類]],パラメーター[プロジェクトの種類],0),MATCH(プロジェクト詳細[[#Headers],[プロジェクト マネージャー]],パラメーター[#Headers],0))*INDEX('プロジェクト パラメーター'!$B$12:$H$12,1,MATCH(プロジェクト詳細[[#Headers],[プロジェクト マネージャー]],パラメーター[#Headers],0))*プロジェクト詳細[[#This Row],[作業時間実績]]","v":{"v":23400,"d":"¥23,400"}},{"$f":"INDEX(パラメーター[],MATCH(プロジェクト詳細[[#This Row],[プロジェクトの種類]],パラメーター[プロジェクトの種類],0),MATCH(プロジェクト詳細[[#Headers],[戦略マネージャー]],パラメーター[#Headers],0))*INDEX('プロジェクト パラメーター'!$B$12:$H$12,1,MATCH(プロジェクト詳細[[#Headers],[戦略マネージャー]],パラメーター[#Headers],0))*プロジェクト詳細[[#This Row],[作業時間実績]]","v":{"v":5850,"d":"¥5,850"}},{"$f":"INDEX(パラメーター[],MATCH(プロジェクト詳細[[#This Row],[プロジェクトの種類]],パラメーター[プロジェクトの種類],0),MATCH(プロジェクト詳細[[#Headers],[デザイン スペシャリスト]],パラメーター[#Headers],0))*INDEX('プロジェクト パラメーター'!$B$12:$H$12,1,MATCH(プロジェクト詳細[[#Headers],[デザイン スペシャリスト]],パラメーター[#Headers],0))*プロジェクト詳細[[#This Row],[作業時間実績]]","v":{"v":3900,"d":"¥3,900"}},{"$f":"INDEX(パラメーター[],MATCH(プロジェクト詳細[[#This Row],[プロジェクトの種類]],パラメーター[プロジェクトの種類],0),MATCH(プロジェクト詳細[[#Headers],[イベント スタッフ]],パラメーター[#Headers],0))*INDEX('プロジェクト パラメーター'!$B$12:$H$12,1,MATCH(プロジェクト詳細[[#Headers],[イベント スタッフ]],パラメーター[#Headers],0))*プロジェクト詳細[[#This Row],[作業時間実績]]","v":{"v":0,"d":"¥0"}},{"$f":"INDEX(パラメーター[],MATCH(プロジェクト詳細[[#This Row],[プロジェクトの種類]],パラメーター[プロジェクトの種類],0),MATCH(プロジェクト詳細[[#Headers],[管理スタッフ]],パラメーター[#Headers],0))*INDEX('プロジェクト パラメーター'!$B$12:$H$12,1,MATCH(プロジェクト詳細[[#Headers],[管理スタッフ]],パラメーター[#Headers],0))*プロジェクト詳細[[#This Row],[作業時間実績]]","v":{"v":2340,"d":"¥2,340"}}]
[null,"プロジェクト 3","イベントのデザイン",{"$f":"DATE(YEAR(TODAY())+2,7,12)","v":"2021-07-12"},{"$f":"DATE(YEAR(TODAY())+2,9,19)","v":"2021-09-19"},{"$f":"DATE(YEAR(TODAY())+6,8,7)","v":"2025-08-07"},{"$f":"DATE(YEAR(TODAY())+6,10,10)","v":"2025-10-10"},500,500,{"$f":"DAYS360(プロジェクト詳細[[#This Row],[開始計画]],プロジェクト詳細[[#This Row],[終了計画]],FALSE)","v":67},{"$f":"DAYS360(プロジェクト詳細[[#This Row],[開始実績]],プロジェクト詳細[[#This Row],[終了実績]],FALSE)","v":63},{"$f":"INDEX(パラメーター[],MATCH(プロジェクト詳細[[#This Row],[プロジェクトの種類]],パラメーター[プロジェクトの種類],0),MATCH(プロジェクト詳細[[#Headers],[アカウント マネージャー]],パラメーター[#Headers],0))*INDEX('プロジェクト パラメーター'!$B$12:$H$12,1,MATCH(プロジェクト詳細[[#Headers],[アカウント マネージャー]],パラメーター[#Headers],0))*プロジェクト詳細[[#This Row],[作業時間計画]]","v":{"v":18000,"d":"¥18,000"}},{"$f":"INDEX(パラメーター[],MATCH(プロジェクト詳細[[#This Row],[プロジェクトの種類]],パラメーター[プロジェクトの種類],0),MATCH(プロジェクト詳細[[#Headers],[プロジェクト マネージャー]],パラメーター[#Headers],0))*INDEX('プロジェクト パラメーター'!$B$12:$H$12,1,MATCH(プロジェクト詳細[[#Headers],[プロジェクト マネージャー]],パラメーター[#Headers],0))*プロジェクト詳細[[#This Row],[作業時間計画]]","v":{"v":12000,"d":"¥12,000"}},{"$f":"INDEX(パラメーター[],MATCH(プロジェクト詳細[[#This Row],[プロジェクトの種類]],パラメーター[プロジェクトの種類],0),MATCH(プロジェクト詳細[[#Headers],[戦略マネージャー]],パラメーター[#Headers],0))*INDEX('プロジェクト パラメーター'!$B$12:$H$12,1,MATCH(プロジェクト詳細[[#Headers],[戦略マネージャー]],パラメーター[#Headers],0))*プロジェクト詳細[[#This Row],[作業時間計画]]","v":{"v":0,"d":"¥0"}},{"$f":"INDEX(パラメーター[],MATCH(プロジェクト詳細[[#This Row],[プロジェクトの種類]],パラメーター[プロジェクトの種類],0),MATCH(プロジェクト詳細[[#Headers],[デザイン スペシャリスト]],パラメーター[#Headers],0))*INDEX('プロジェクト パラメーター'!$B$12:$H$12,1,MATCH(プロジェクト詳細[[#Headers],[デザイン スペシャリスト]],パラメーター[#Headers],0))*プロジェクト詳細[[#This Row],[作業時間計画]]","v":{"v":25000,"d":"¥25,000"}},{"$f":"INDEX(パラメーター[],MATCH(プロジェクト詳細[[#This Row],[プロジェクトの種類]],パラメーター[プロジェクトの種類],0),MATCH(プロジェクト詳細[[#Headers],[イベント スタッフ]],パラメーター[#Headers],0))*INDEX('プロジェクト パラメーター'!$B$12:$H$12,1,MATCH(プロジェクト詳細[[#Headers],[イベント スタッフ]],パラメーター[#Headers],0))*プロジェクト詳細[[#This Row],[作業時間計画]]","v":{"v":0,"d":"¥0"}},{"$f":"INDEX(パラメーター[],MATCH(プロジェクト詳細[[#This Row],[プロジェクトの種類]],パラメーター[プロジェクトの種類],0),MATCH(プロジェクト詳細[[#Headers],[管理スタッフ]],パラメーター[#Headers],0))*INDEX('プロジェクト パラメーター'!$B$12:$H$12,1,MATCH(プロジェクト詳細[[#Headers],[管理スタッフ]],パラメーター[#Headers],0))*プロジェクト詳細[[#This Row],[作業時間計画]]","v":{"v":3000,"d":"¥3,000"}},{"$f":"INDEX(パラメーター[],MATCH(プロジェクト詳細[[#This Row],[プロジェクトの種類]],パラメーター[プロジェクトの種類],0),MATCH(プロジェクト詳細[[#Headers],[アカウント マネージャー]],パラメーター[#Headers],0))*INDEX('プロジェクト パラメーター'!$B$12:$H$12,1,MATCH(プロジェクト詳細[[#Headers],[アカウント マネージャー]],パラメーター[#Headers],0))*プロジェクト詳細[[#This Row],[作業時間実績]]","v":{"v":18000,"d":"¥18,000"}},{"$f":"INDEX(パラメーター[],MATCH(プロジェクト詳細[[#This Row],[プロジェクトの種類]],パラメーター[プロジェクトの種類],0),MATCH(プロジェクト詳細[[#Headers],[プロジェクト マネージャー]],パラメーター[#Headers],0))*INDEX('プロジェクト パラメーター'!$B$12:$H$12,1,MATCH(プロジェクト詳細[[#Headers],[プロジェクト マネージャー]],パラメーター[#Headers],0))*プロジェクト詳細[[#This Row],[作業時間実績]]","v":{"v":12000,"d":"¥12,000"}},{"$f":"INDEX(パラメーター[],MATCH(プロジェクト詳細[[#This Row],[プロジェクトの種類]],パラメーター[プロジェクトの種類],0),MATCH(プロジェクト詳細[[#Headers],[戦略マネージャー]],パラメーター[#Headers],0))*INDEX('プロジェクト パラメーター'!$B$12:$H$12,1,MATCH(プロジェクト詳細[[#Headers],[戦略マネージャー]],パラメーター[#Headers],0))*プロジェクト詳細[[#This Row],[作業時間実績]]","v":{"v":0,"d":"¥0"}},{"$f":"INDEX(パラメーター[],MATCH(プロジェクト詳細[[#This Row],[プロジェクトの種類]],パラメーター[プロジェクトの種類],0),MATCH(プロジェクト詳細[[#Headers],[デザイン スペシャリスト]],パラメーター[#Headers],0))*INDEX('プロジェクト パラメーター'!$B$12:$H$12,1,MATCH(プロジェクト詳細[[#Headers],[デザイン スペシャリスト]],パラメーター[#Headers],0))*プロジェクト詳細[[#This Row],[作業時間実績]]","v":{"v":25000,"d":"¥25,000"}},{"$f":"INDEX(パラメーター[],MATCH(プロジェクト詳細[[#This Row],[プロジェクトの種類]],パラメーター[プロジェクトの種類],0),MATCH(プロジェクト詳細[[#Headers],[イベント スタッフ]],パラメーター[#Headers],0))*INDEX('プロジェクト パラメーター'!$B$12:$H$12,1,MATCH(プロジェクト詳細[[#Headers],[イベント スタッフ]],パラメーター[#Headers],0))*プロジェクト詳細[[#This Row],[作業時間実績]]","v":{"v":0,"d":"¥0"}},{"$f":"INDEX(パラメーター[],MATCH(プロジェクト詳細[[#This Row],[プロジェクトの種類]],パラメーター[プロジェクトの種類],0),MATCH(プロジェクト詳細[[#Headers],[管理スタッフ]],パラメーター[#Headers],0))*INDEX('プロジェクト パラメーター'!$B$12:$H$12,1,MATCH(プロジェクト詳細[[#Headers],[管理スタッフ]],パラメーター[#Headers],0))*プロジェクト詳細[[#This Row],[作業時間実績]]","v":{"v":3000,"d":"¥3,000"}}]
[null,"プロジェクト 4","イベントの手配",{"$f":"DATE(YEAR(TODAY())+3,7,30)","v":"2022-07-30"},{"$f":"DATE(YEAR(TODAY())+3,9,28)","v":"2022-09-28"},{"$f":"DATE(YEAR(TODAY())+3,9,14)","v":"2022-09-14"},{"$f":"DATE(YEAR(TODAY())+3,11,13)","v":"2022-11-13"},150,145,{"$f":"DAYS360(プロジェクト詳細[[#This Row],[開始計画]],プロジェクト詳細[[#This Row],[終了計画]],FALSE)","v":58},{"$f":"DAYS360(プロジェクト詳細[[#This Row],[開始実績]],プロジェクト詳細[[#This Row],[終了実績]],FALSE)","v":59},{"$f":"INDEX(パラメーター[],MATCH(プロジェクト詳細[[#This Row],[プロジェクトの種類]],パラメーター[プロジェクトの種類],0),MATCH(プロジェクト詳細[[#Headers],[アカウント マネージャー]],パラメーター[#Headers],0))*INDEX('プロジェクト パラメーター'!$B$12:$H$12,1,MATCH(プロジェクト詳細[[#Headers],[アカウント マネージャー]],パラメーター[#Headers],0))*プロジェクト詳細[[#This Row],[作業時間計画]]","v":{"v":5400,"d":"¥5,400"}},{"$f":"INDEX(パラメーター[],MATCH(プロジェクト詳細[[#This Row],[プロジェクトの種類]],パラメーター[プロジェクトの種類],0),MATCH(プロジェクト詳細[[#Headers],[プロジェクト マネージャー]],パラメーター[#Headers],0))*INDEX('プロジェクト パラメーター'!$B$12:$H$12,1,MATCH(プロジェクト詳細[[#Headers],[プロジェクト マネージャー]],パラメーター[#Headers],0))*プロジェクト詳細[[#This Row],[作業時間計画]]","v":{"v":10800,"d":"¥10,800"}},{"$f":"INDEX(パラメーター[],MATCH(プロジェクト詳細[[#This Row],[プロジェクトの種類]],パラメーター[プロジェクトの種類],0),MATCH(プロジェクト詳細[[#Headers],[戦略マネージャー]],パラメーター[#Headers],0))*INDEX('プロジェクト パラメーター'!$B$12:$H$12,1,MATCH(プロジェクト詳細[[#Headers],[戦略マネージャー]],パラメーター[#Headers],0))*プロジェクト詳細[[#This Row],[作業時間計画]]","v":{"v":0,"d":"¥0"}},{"$f":"INDEX(パラメーター[],MATCH(プロジェクト詳細[[#This Row],[プロジェクトの種類]],パラメーター[プロジェクトの種類],0),MATCH(プロジェクト詳細[[#Headers],[デザイン スペシャリスト]],パラメーター[#Headers],0))*INDEX('プロジェクト パラメーター'!$B$12:$H$12,1,MATCH(プロジェクト詳細[[#Headers],[デザイン スペシャリスト]],パラメーター[#Headers],0))*プロジェクト詳細[[#This Row],[作業時間計画]]","v":{"v":0,"d":"¥0"}},{"$f":"INDEX(パラメーター[],MATCH(プロジェクト詳細[[#This Row],[プロジェクトの種類]],パラメーター[プロジェクトの種類],0),MATCH(プロジェクト詳細[[#Headers],[イベント スタッフ]],パラメーター[#Headers],0))*INDEX('プロジェクト パラメーター'!$B$12:$H$12,1,MATCH(プロジェクト詳細[[#Headers],[イベント スタッフ]],パラメーター[#Headers],0))*プロジェクト詳細[[#This Row],[作業時間計画]]","v":{"v":1200,"d":"¥1,200"}},{"$f":"INDEX(パラメーター[],MATCH(プロジェクト詳細[[#This Row],[プロジェクトの種類]],パラメーター[プロジェクトの種類],0),MATCH(プロジェクト詳細[[#Headers],[管理スタッフ]],パラメーター[#Headers],0))*INDEX('プロジェクト パラメーター'!$B$12:$H$12,1,MATCH(プロジェクト詳細[[#Headers],[管理スタッフ]],パラメーター[#Headers],0))*プロジェクト詳細[[#This Row],[作業時間計画]]","v":{"v":900,"d":"¥900"}},{"$f":"INDEX(パラメーター[],MATCH(プロジェクト詳細[[#This Row],[プロジェクトの種類]],パラメーター[プロジェクトの種類],0),MATCH(プロジェクト詳細[[#Headers],[アカウント マネージャー]],パラメーター[#Headers],0))*INDEX('プロジェクト パラメーター'!$B$12:$H$12,1,MATCH(プロジェクト詳細[[#Headers],[アカウント マネージャー]],パラメーター[#Headers],0))*プロジェクト詳細[[#This Row],[作業時間実績]]","v":{"v":5220,"d":"¥5,220"}},{"$f":"INDEX(パラメーター[],MATCH(プロジェクト詳細[[#This Row],[プロジェクトの種類]],パラメーター[プロジェクトの種類],0),MATCH(プロジェクト詳細[[#Headers],[プロジェクト マネージャー]],パラメーター[#Headers],0))*INDEX('プロジェクト パラメーター'!$B$12:$H$12,1,MATCH(プロジェクト詳細[[#Headers],[プロジェクト マネージャー]],パラメーター[#Headers],0))*プロジェクト詳細[[#This Row],[作業時間実績]]","v":{"v":10440,"d":"¥10,440"}},{"$f":"INDEX(パラメーター[],MATCH(プロジェクト詳細[[#This Row],[プロジェクトの種類]],パラメーター[プロジェクトの種類],0),MATCH(プロジェクト詳細[[#Headers],[戦略マネージャー]],パラメーター[#Headers],0))*INDEX('プロジェクト パラメーター'!$B$12:$H$12,1,MATCH(プロジェクト詳細[[#Headers],[戦略マネージャー]],パラメーター[#Headers],0))*プロジェクト詳細[[#This Row],[作業時間実績]]","v":{"v":0,"d":"¥0"}},{"$f":"INDEX(パラメーター[],MATCH(プロジェクト詳細[[#This Row],[プロジェクトの種類]],パラメーター[プロジェクトの種類],0),MATCH(プロジェクト詳細[[#Headers],[デザイン スペシャリスト]],パラメーター[#Headers],0))*INDEX('プロジェクト パラメーター'!$B$12:$H$12,1,MATCH(プロジェクト詳細[[#Headers],[デザイン スペシャリスト]],パラメーター[#Headers],0))*プロジェクト詳細[[#This Row],[作業時間実績]]","v":{"v":0,"d":"¥0"}},{"$f":"INDEX(パラメーター[],MATCH(プロジェクト詳細[[#This Row],[プロジェクトの種類]],パラメーター[プロジェクトの種類],0),MATCH(プロジェクト詳細[[#Headers],[イベント スタッフ]],パラメーター[#Headers],0))*INDEX('プロジェクト パラメーター'!$B$12:$H$12,1,MATCH(プロジェクト詳細[[#Headers],[イベント スタッフ]],パラメーター[#Headers],0))*プロジェクト詳細[[#This Row],[作業時間実績]]","v":{"v":1160,"d":"¥1,160"}},{"$f":"INDEX(パラメーター[],MATCH(プロジェクト詳細[[#This Row],[プロジェクトの種類]],パラメーター[プロジェクトの種類],0),MATCH(プロジェクト詳細[[#Headers],[管理スタッフ]],パラメーター[#Headers],0))*INDEX('プロジェクト パラメーター'!$B$12:$H$12,1,MATCH(プロジェクト詳細[[#Headers],[管理スタッフ]],パラメーター[#Headers],0))*プロジェクト詳細[[#This Row],[作業時間実績]]","v":{"v":870,"d":"¥870"}}]
[null,"プロジェクト 5","スタッフのスタッフ配置",{"$f":"DATE(YEAR(TODAY())+4,8,11)","v":"2023-08-11"},{"$f":"DATE(YEAR(TODAY())+4,8,21)","v":"2023-08-21"},{"$f":"DATE(YEAR(TODAY())+4,9,14)","v":"2023-09-14"},{"$f":"DATE(YEAR(TODAY())+4,9,25)","v":"2023-09-25"},250,255,{"$f":"DAYS360(プロジェクト詳細[[#This Row],[開始計画]],プロジェクト詳細[[#This Row],[終了計画]],FALSE)","v":10},{"$f":"DAYS360(プロジェクト詳細[[#This Row],[開始実績]],プロジェクト詳細[[#This Row],[終了実績]],FALSE)","v":11},{"$f":"INDEX(パラメーター[],MATCH(プロジェクト詳細[[#This Row],[プロジェクトの種類]],パラメーター[プロジェクトの種類],0),MATCH(プロジェクト詳細[[#Headers],[アカウント マネージャー]],パラメーター[#Headers],0))*INDEX('プロジェクト パラメーター'!$B$12:$H$12,1,MATCH(プロジェクト詳細[[#Headers],[アカウント マネージャー]],パラメーター[#Headers],0))*プロジェクト詳細[[#This Row],[作業時間計画]]","v":{"v":9000,"d":"¥9,000"}},{"$f":"INDEX(パラメーター[],MATCH(プロジェクト詳細[[#This Row],[プロジェクトの種類]],パラメーター[プロジェクトの種類],0),MATCH(プロジェクト詳細[[#Headers],[プロジェクト マネージャー]],パラメーター[#Headers],0))*INDEX('プロジェクト パラメーター'!$B$12:$H$12,1,MATCH(プロジェクト詳細[[#Headers],[プロジェクト マネージャー]],パラメーター[#Headers],0))*プロジェクト詳細[[#This Row],[作業時間計画]]","v":{"v":3000,"d":"¥3,000"}},{"$f":"INDEX(パラメーター[],MATCH(プロジェクト詳細[[#This Row],[プロジェクトの種類]],パラメーター[プロジェクトの種類],0),MATCH(プロジェクト詳細[[#Headers],[戦略マネージャー]],パラメーター[#Headers],0))*INDEX('プロジェクト パラメーター'!$B$12:$H$12,1,MATCH(プロジェクト詳細[[#Headers],[戦略マネージャー]],パラメーター[#Headers],0))*プロジェクト詳細[[#This Row],[作業時間計画]]","v":{"v":0,"d":"¥0"}},{"$f":"INDEX(パラメーター[],MATCH(プロジェクト詳細[[#This Row],[プロジェクトの種類]],パラメーター[プロジェクトの種類],0),MATCH(プロジェクト詳細[[#Headers],[デザイン スペシャリスト]],パラメーター[#Headers],0))*INDEX('プロジェクト パラメーター'!$B$12:$H$12,1,MATCH(プロジェクト詳細[[#Headers],[デザイン スペシャリスト]],パラメーター[#Headers],0))*プロジェクト詳細[[#This Row],[作業時間計画]]","v":{"v":0,"d":"¥0"}},{"$f":"INDEX(パラメーター[],MATCH(プロジェクト詳細[[#This Row],[プロジェクトの種類]],パラメーター[プロジェクトの種類],0),MATCH(プロジェクト詳細[[#Headers],[イベント スタッフ]],パラメーター[#Headers],0))*INDEX('プロジェクト パラメーター'!$B$12:$H$12,1,MATCH(プロジェクト詳細[[#Headers],[イベント スタッフ]],パラメーター[#Headers],0))*プロジェクト詳細[[#This Row],[作業時間計画]]","v":{"v":12000,"d":"¥12,000"}},{"$f":"INDEX(パラメーター[],MATCH(プロジェクト詳細[[#This Row],[プロジェクトの種類]],パラメーター[プロジェクトの種類],0),MATCH(プロジェクト詳細[[#Headers],[管理スタッフ]],パラメーター[#Headers],0))*INDEX('プロジェクト パラメーター'!$B$12:$H$12,1,MATCH(プロジェクト詳細[[#Headers],[管理スタッフ]],パラメーター[#Headers],0))*プロジェクト詳細[[#This Row],[作業時間計画]]","v":{"v":1500,"d":"¥1,500"}},{"$f":"INDEX(パラメーター[],MATCH(プロジェクト詳細[[#This Row],[プロジェクトの種類]],パラメーター[プロジェクトの種類],0),MATCH(プロジェクト詳細[[#Headers],[アカウント マネージャー]],パラメーター[#Headers],0))*INDEX('プロジェクト パラメーター'!$B$12:$H$12,1,MATCH(プロジェクト詳細[[#Headers],[アカウント マネージャー]],パラメーター[#Headers],0))*プロジェクト詳細[[#This Row],[作業時間実績]]","v":{"v":9180,"d":"¥9,180"}},{"$f":"INDEX(パラメーター[],MATCH(プロジェクト詳細[[#This Row],[プロジェクトの種類]],パラメーター[プロジェクトの種類],0),MATCH(プロジェクト詳細[[#Headers],[プロジェクト マネージャー]],パラメーター[#Headers],0))*INDEX('プロジェクト パラメーター'!$B$12:$H$12,1,MATCH(プロジェクト詳細[[#Headers],[プロジェクト マネージャー]],パラメーター[#Headers],0))*プロジェクト詳細[[#This Row],[作業時間実績]]","v":{"v":3060,"d":"¥3,060"}},{"$f":"INDEX(パラメーター[],MATCH(プロジェクト詳細[[#This Row],[プロジェクトの種類]],パラメーター[プロジェクトの種類],0),MATCH(プロジェクト詳細[[#Headers],[戦略マネージャー]],パラメーター[#Headers],0))*INDEX('プロジェクト パラメーター'!$B$12:$H$12,1,MATCH(プロジェクト詳細[[#Headers],[戦略マネージャー]],パラメーター[#Headers],0))*プロジェクト詳細[[#This Row],[作業時間実績]]","v":{"v":0,"d":"¥0"}},{"$f":"INDEX(パラメーター[],MATCH(プロジェクト詳細[[#This Row],[プロジェクトの種類]],パラメーター[プロジェクトの種類],0),MATCH(プロジェクト詳細[[#Headers],[デザイン スペシャリスト]],パラメーター[#Headers],0))*INDEX('プロジェクト パラメーター'!$B$12:$H$12,1,MATCH(プロジェクト詳細[[#Headers],[デザイン スペシャリスト]],パラメーター[#Headers],0))*プロジェクト詳細[[#This Row],[作業時間実績]]","v":{"v":0,"d":"¥0"}},{"$f":"INDEX(パラメーター[],MATCH(プロジェクト詳細[[#This Row],[プロジェクトの種類]],パラメーター[プロジェクトの種類],0),MATCH(プロジェクト詳細[[#Headers],[イベント スタッフ]],パラメーター[#Headers],0))*INDEX('プロジェクト パラメーター'!$B$12:$H$12,1,MATCH(プロジェクト詳細[[#Headers],[イベント スタッフ]],パラメーター[#Headers],0))*プロジェクト詳細[[#This Row],[作業時間実績]]","v":{"v":12240,"d":"¥12,240"}},{"$f":"INDEX(パラメーター[],MATCH(プロジェクト詳細[[#This Row],[プロジェクトの種類]],パラメーター[プロジェクトの種類],0),MATCH(プロジェクト詳細[[#Headers],[管理スタッフ]],パラメーター[#Headers],0))*INDEX('プロジェクト パラメーター'!$B$12:$H$12,1,MATCH(プロジェクト詳細[[#Headers],[管理スタッフ]],パラメーター[#Headers],0))*プロジェクト詳細[[#This Row],[作業時間実績]]","v":{"v":1530,"d":"¥1,530"}}]
[null,"集計",{"$nulls":5},{"$f":"SUBTOTAL(109,プロジェクト詳細[作業時間計画])","v":1500},{"$f":"SUBTOTAL(109,プロジェクト詳細[作業時間実績])","v":1510},{"$f":"SUBTOTAL(109,プロジェクト詳細[継続期間計画])","v":225},{"$f":"SUBTOTAL(109,プロジェクト詳細[継続期間実績])","v":597}]

{"sheet":"プロジェクト合計","index":3,"n_rows":10,"n_cols":14,"rows_kept":10}
["このワークシートでは、プロジェクト合計を取得します。会社名は右のセルで自動的に更新されます。役立つ手順がこの列のセルに表示されます。下向き矢印で開始します。",{"$f":"'プロジェクト パラメーター'!B1","v":"会社名"}]
["このワークシートのタイトルは右のセルに表示されます。","イベント管理プロジェクト追跡ツール"]
["社外秘に関するメッセージが、右のセルに表示されます。",{"$f":"'プロジェクト パラメーター'!B3","v":"会社名 (極秘)"}]
["右のセルから始まるピボットテーブルは自動的に更新されます。\n情報\n右のピボットテーブルを更新するには、ピボットテーブル内の任意のセルを選択し、[ピボットテーブル ツール] の [分析] リボン タブで [更新] を選択します。または、ピボットテーブル内のいずれかのセルで Shift キーを押しながら F10 キーを押して、[更新] を選択します。","プロジェクト名","アカウント マネージャー計画","プロジェクト マネージャー計画","戦略マネージャー計画","デザイン スペシャリスト計画","イベント スタッフ計画","管理スタッフ計画","アカウント マネージャー実績","プロジェクト マネージャー実績","戦略マネージャー実績","デザイン スペシャリスト実績","イベント スタッフ実績","管理スタッフ実績"]
[null,"プロジェクト 1",{"v":7200,"d":"¥7,200.00"},{"v":2400,"d":"¥2,400.00"},{"v":18000,"d":"¥18,000.00"},{"v":0,"d":"¥0.00"},{"v":0,"d":"¥0.00"},{"v":1200,"d":"¥1,200.00"},{"v":7920,"d":"¥7,920.00"},{"v":2640,"d":"¥2,640.00"},{"v":19800,"d":"¥19,800.00"},{"v":0,"d":"¥0.00"},{"v":0,"d":"¥0.00"},{"v":1320,"d":"¥1,320.00"}]
[null,"プロジェクト 2",{"v":14400,"d":"¥14,400.00"},{"v":24000,"d":"¥24,000.00"},{"v":6000,"d":"¥6,000.00"},{"v":4000,"d":"¥4,000.00"},{"v":0,"d":"¥0.00"},{"v":2400,"d":"¥2,400.00"},{"v":14040,"d":"¥14,040.00"},{"v":23400,"d":"¥23,400.00"},{"v":5850,"d":"¥5,850.00"},{"v":3900,"d":"¥3,900.00"},{"v":0,"d":"¥0.00"},{"v":2340,"d":"¥2,340.00"}]
[null,"プロジェクト 3",{"v":18000,"d":"¥18,000.00"},{"v":12000,"d":"¥12,000.00"},{"v":0,"d":"¥0.00"},{"v":25000,"d":"¥25,000.00"},{"v":0,"d":"¥0.00"},{"v":3000,"d":"¥3,000.00"},{"v":18000,"d":"¥18,000.00"},{"v":12000,"d":"¥12,000.00"},{"v":0,"d":"¥0.00"},{"v":25000,"d":"¥25,000.00"},{"v":0,"d":"¥0.00"},{"v":3000,"d":"¥3,000.00"}]
[null,"プロジェクト 4",{"v":5400,"d":"¥5,400.00"},{"v":10800,"d":"¥10,800.00"},{"v":0,"d":"¥0.00"},{"v":0,"d":"¥0.00"},{"v":1200,"d":"¥1,200.00"},{"v":900,"d":"¥900.00"},{"v":5220,"d":"¥5,220.00"},{"v":10440,"d":"¥10,440.00"},{"v":0,"d":"¥0.00"},{"v":0,"d":"¥0.00"},{"v":1160,"d":"¥1,160.00"},{"v":870,"d":"¥870.00"}]
[null,"プロジェクト 5",{"v":9000,"d":"¥9,000.00"},{"v":3000,"d":"¥3,000.00"},{"v":0,"d":"¥0.00"},{"v":0,"d":"¥0.00"},{"v":12000,"d":"¥12,000.00"},{"v":1500,"d":"¥1,500.00"},{"v":9180,"d":"¥9,180.00"},{"v":3060,"d":"¥3,060.00"},{"v":0,"d":"¥0.00"},{"v":0,"d":"¥0.00"},{"v":12240,"d":"¥12,240.00"},{"v":1530,"d":"¥1,530.00"}]
[null,"総計",{"v":54000,"d":"¥54,000.00"},{"v":52200,"d":"¥52,200.00"},{"v":24000,"d":"¥24,000.00"},{"v":29000,"d":"¥29,000.00"},{"v":13200,"d":"¥13,200.00"},{"v":9000,"d":"¥9,000.00"},{"v":54360,"d":"¥54,360.00"},{"v":51540,"d":"¥51,540.00"},{"v":25650,"d":"¥25,650.00"},{"v":28900,"d":"¥28,900.00"},{"v":13400,"d":"¥13,400.00"},{"v":9060,"d":"¥9,060.00"}]